[Event "24th Mediterranean Flower 2024"]
[Site "Rijeka"]
[Date "2024.03.06"]
[Round "5.4"]
[White "Hamdouchi, Adina-Maria"]
[Black "Zagorac, Lara"]
[Result "0-1"]
[ECO "A38"]
[WhiteElo "2213"]
[BlackElo "1894"]
[Annotator "RC"]
[PlyCount "168"]
[EventDate "2024.03.04"]
[EventType "tourn"]
[EventCountry "CRO"]
[SourceTitle "playchess.com"]
[Source "ChessBase"]
[SourceQuality "1"]
[TimeControl "5400+30"]

1. Nf3 {[%emt 0:00:03]} c5 {[%emt 0:00:26]} 2. c4 {[%emt 0:00:11]} Nf6 {[%emt 0:00:10]} 3. g3 {[%emt 0:00:08]} g6 {[%emt 0:00:13]} 4. Bg2 {[%emt 0:00:17]} Bg7 {[%emt 0:00:09]} 5. Nc3 {[%emt 0:00:14]} Nc6 {[%emt 0:00:26]} 6. O-O {[%emt 0:00:55]} O-O {[%emt 0:00:13]} 7. d4 {[%emt 0:00:59]} cxd4 {[%emt 0:00:31]} 8. Nxd4 {[%emt 0:00:06]} Qa5 {[%emt 0:02:13]} 9. Nc2 {[%emt 0:01:50]} d6 {[%emt 0:00:46]} 10. Bd2 {[%emt 0:00:56]} Qh5 {[%emt 0:01:40]} 11. e4 {[%emt 0:00:54]} Qxd1 {[%emt 0:13:31]} 12. Raxd1 {[%emt 0:01:03]} Be6 {[%emt 0:00:44]} 13. b3 {[%emt 0:00:44]} Rac8 {[%emt 0:02:00]} 14. h3 {[%emt 0:03:23]} Nd7 {[%emt 0:03:20]} 15. Nd5 {[%emt 0:03:14]} Bxd5 {[%emt 0:04:05]} 16. exd5 {[%emt 0:00:10]} Nd4 {[%emt 0:05:32]} 17. Nxd4 {[%emt 0:07:51]} Bxd4 {[%emt 0:00:24]} 18. Bg5 {[%emt 0:02:33]} Bf6 {[%emt 0:00:39]} 19. h4 {[%emt 0:00:04]} Bxg5 {[%emt 0:08:24]} 20. hxg5 {[%emt 0:00:14]} Nc5 {[%emt 0:00:28]} 21. Rfe1 {[%emt 0:02:13]} Rfe8 {[%emt 0:03:49]} 22. Re3 {[%emt 0:03:30]} Rc7 {[%emt 0:01:29]} 23. f4 {[%emt 0:01:25]} Kg7 {[%emt 0:01:33]} 24. Bf1 {[%emt 0:03:07]} Rh8 {[%emt 0:07:43]} 25. Rde1 {[%emt 0:03:21]} Kf8 {[%emt 0:01:42]} 26. b4 {[%emt 0:00:58]} Na6 {[%emt 0:02:19]} 27. Ra3 {[%emt 0:04:07]} Nxb4 {[%emt 0:03:53]} 28. Rxa7 {[%emt 0:00:23]} Na6 {[%emt 0:00:25]} 29. Rb1 {[%emt 0:04:28]} Nc5 {[%emt 0:00:58]} 30. Kf2 {[%emt 0:04:12]} Kg7 {[%emt 0:01:12]} 31. Ke3 {[%emt 0:04:15]} h6 {[%emt 0:02:09]} 32. gxh6+ {[%emt 0:02:56]} Rxh6 {[%emt 0:00:22]} 33. a4 {[%emt 0:05:31]} Rc8 {[%emt 0:02:57]} 34. Be2 {[%emt 0:09:11]} Rh2 {[%emt 0:08:32]} 35. a5 {[%emt 0:01:55]} Rhh8 {[%emt 0:00:55]} 36. Bf3 {[%emt 0:13:58]} Ra8 {[%emt 0:08:49]} 37. Rxa8 {[%emt 0:00:14]} Rxa8 {[%emt 0:00:07]} 38. Rb5 {[%emt 0:00:22]} Kf8 {[%emt 0:00:38]} 39. g4 {[%emt 0:08:13]} Ke8 {[%emt 0:01:16]} 40. g5 {[%emt 0:00:19]} Kd7 {[%emt 0:00:28]} 41. Bg4+ {[%emt 0:00:24]} Kc7 {[%emt 0:00:09]} 42. f5 {[%emt 0:00:12]} gxf5 {[%emt 0:01:35]} 43. Bxf5 {[%emt 0:00:06]} Rh8 {[%emt 0:00:14]} 44. g6 {[%emt 0:02:03]} fxg6 {[%emt 0:00:28]} 45. Bxg6 {[%emt 0:00:08]} Rh4 {[%emt 0:00:13]} 46. Rb4 {[%emt 0:00:49]} Nd7 {[%emt 0:00:29]} 47. Be8 {[%emt 0:01:55]} Nc5 {[%emt 0:01:19]} 48. Bb5 {[%emt 0:02:08]} Rh3+ {[%emt 0:00:19]} 49. Kd2 {[%emt 0:00:38]} Ra3 {[%emt 0:00:38]} 50. Rb1 {[%emt 0:00:47]} Ne4+ {[%emt 0:07:47]} 51. Kc2 {[%emt 0:00:34]} Nf6 {[%emt 0:00:37]} 52. Re1 {[%emt 0:01:10]} Kd8 {[%emt 0:00:15]} 53. a6 {[%emt 0:02:37]} bxa6 {[%emt 0:00:33]} 54. Kb2 {[%emt 0:00:03]} Ra5 {[%emt 0:01:07]} 55. Bc6 {[%emt 0:00:03]} Nd7 {[%emt 0:01:34]} 56. Bxd7 {[%emt 0:00:28]} Kxd7 {[%emt 0:00:05]} 57. Kb3 {[%emt 0:00:05]} Rc5 {[%emt 0:00:26]} 58. Ra1 {[%emt 0:00:21]} a5 {[%emt 0:00:06]} 59. Ra2 {[%emt 0:00:49]} Kc8 {[%emt 0:00:30]} 60. Kc3 {[%emt 0:01:38]} Kb7 {[%emt 0:00:33]} 61. Rb2+ {[%emt 0:01:34]} Ka7 {[%emt 0:00:12]} 62. Ra2 {[%emt 0:01:24]} Ka6 {[%emt 0:00:27]} 63. Rb2 {[%emt 0:00:10]} Rc7 {[%emt 0:01:27]} 64. Rb8 {[%emt 0:00:14]} Rb7 {[%emt 0:00:31]} 65. Ra8+ {[%emt 0:00:17]} Kb6 {[%emt 0:00:15]} 66. Rc8 {[%emt 0:00:07]} Ka7 {[%emt 0:00:51]} 67. c5 {[%emt 0:01:03]} dxc5 {[%emt 0:00:10]} 68. Rxc5 {[%emt 0:00:04]} Kb6 {[%emt 0:00:09]} 69. Rc6+ {[%emt 0:00:55]} Kb5 {[%emt 0:00:16]} 70. Re6 {[%emt 0:01:43]} Kc5 {[%emt 0:01:02]} 71. Ra6 {[%emt 0:00:16]} Rb5 {[%emt 0:02:13]} 72. Re6 {[%emt 0:00:05]} Rb7 {[%emt 0:00:16]} 73. Ra6 {[%emt 0:00:04]} Kb5 {[%emt 0:00:13]} 74. Rc6 {[%emt 0:01:35]} a4 {[%emt 0:01:07]} 75. Kb2 {[%emt 0:00:29]} Rd7 {[%emt 0:00:50]} 76. Re6 {[%emt 0:00:27]} Kc4 {[%emt 0:00:41]} 77. Re4+ {[%emt 0:00:29]} Kxd5 {[%emt 0:01:00]} 78. Rxa4 {[%emt 0:00:02]} Rc7 {[%emt 0:00:24]} 79. Ra5+ {[%emt 0:00:51]} Kd4 {[%emt 0:00:14]} 80. Ra4+ {[%emt 0:00:19]} Kd3 {[%emt 0:00:24]} 81. Ra3+ {[%emt 0:00:27]} Kd2 {[%emt 0:00:19]} 82. Ra5 {[%emt 0:00:03]} Rb7+ {[%emt 0:00:15]} 83. Ka3 {[%emt 0:00:16]} Kc3 {[%emt 0:00:16]} 84. Rc5+ {[%emt 0:00:14]} Kd4 {[%emt 0:00:10]} 0-1

[Event "24th Mediterranean Flower 2024"]
[Site "Rijeka"]
[Date "2024.03.06"]
[Round "5.5"]
[White "Radikovic, Anamarija"]
[Black "Ivekovic, Tihana"]
[Result "0-1"]
[ECO "E17"]
[WhiteElo "2039"]
[BlackElo "2081"]
[Annotator "RC"]
[PlyCount "104"]
[EventDate "2024.03.04"]
[EventType "tourn"]
[EventCountry "CRO"]
[SourceTitle "playchess.com"]
[Source "ChessBase"]
[SourceQuality "1"]
[TimeControl "5400+30"]

1. Nf3 {[%emt 0:00:02]} d5 {[%emt 0:00:04]} 2. g3 {[%emt 0:00:04]} Nf6 {[%emt 0:00:05]} 3. Bg2 {[%emt 0:00:04]} e6 {[%emt 0:00:04]} 4. O-O {[%emt 0:00:06]} Be7 {[%emt 0:00:03]} 5. c4 {[%emt 0:00:06]} O-O {[%emt 0:00:04]} 6. b3 {[%emt 0:00:04]} b6 {[%emt 0:00:13]} 7. Bb2 {[%emt 0:00:14]} Bb7 {[%emt 0:00:05]} 8. d4 {[%emt 0:02:12]} dxc4 {[%emt 0:01:19]} 9. bxc4 {[%emt 0:00:06]} c5 {[%emt 0:00:21]} 10. Nc3 {[%emt 0:02:55]} cxd4 {[%emt 0:02:12]} 11. Nxd4 {[%emt 0:00:07]} Bxg2 {[%emt 0:00:08]} 12. Kxg2 {[%emt 0:00:05]} Qc7 {[%emt 0:00:44]} 13. Rc1 {[%emt 0:04:25]} Rd8 {[%emt 0:06:43]} 14. Kg1 {[%emt 0:03:20]} Qb7 {[%emt 0:13:11]} 15. e3 {[%emt 0:02:23]} Nbd7 {[%emt 0:05:23]} 16. Qf3 {[%emt 0:02:31]} Qxf3 {[%emt 0:00:56]} 17. Nxf3 {[%emt 0:00:06]} Nc5 {[%emt 0:03:33]} 18. Ne5 {[%emt 0:01:22]} Rd2 {[%emt 0:06:55]} 19. Ba3 {[%emt 0:04:30]} Rc8 {[%emt 0:04:37]} 20. Rfd1 {[%emt 0:01:46]} Rxd1+ {[%emt 0:00:17]} 21. Rxd1 {[%emt 0:00:06]} Bf8 {[%emt 0:07:49]} 22. Nb5 {[%emt 0:08:38]} a6 {[%emt 0:01:09]} 23. Na7 {[%emt 0:00:12]} Rc7 {[%emt 0:02:57]} 24. Nac6 {[%emt 0:00:06]} Nfd7 {[%emt 0:19:22]} 25. Ne7+ {[%emt 0:24:34]} Bxe7 {[%emt 0:01:12]} 26. Nxd7 {[%emt 0:00:05]} Rxd7 {[%emt 0:03:20]} 27. Rxd7 {[%emt 0:00:06]} Nxd7 {[%emt 0:00:03]} 28. Bxe7 {[%emt 0:00:07]} Ne5 {[%emt 0:01:41]} 29. c5 {[%emt 0:01:27]} b5 {[%emt 0:00:27]} 30. Kf1 {[%emt 0:02:29]} Nc6 {[%emt 0:00:13]} 31. Bd6 {[%emt 0:00:05]} f5 {[%emt 0:00:21]} 32. f4 {[%emt 0:01:49]} Kf7 {[%emt 0:00:05]} 33. Ke2 {[%emt 0:00:17]} Ke8 {[%emt 0:00:35]} 34. Kd2 {[%emt 0:12:45]} Kd7 {[%emt 0:02:15]} 35. Bf8 {[%emt 0:00:07]} g6 {[%emt 0:00:05]} 36. e4 {[%emt 0:01:52]} a5 {[%emt 0:06:34]} 37. a3 {[%emt 0:02:47]} a4 {[%emt 0:00:24]} 38. Kd3 {[%emt 0:04:47]} Na5 {[%emt 0:07:33]} 39. Kc3 {[%emt 0:05:13]} Kc6 {[%emt 0:01:32]} 40. exf5 {[%emt 0:01:03]} exf5 {[%emt 0:00:07]} 41. Kb4 {[%emt 0:00:13]} Nb3 {[%emt 0:00:59]} 42. Be7 {[%emt 0:01:17]} h5 {[%emt 0:01:21]} 43. Bf8 {[%emt 0:01:12]} Nd2 {[%emt 0:01:05]} 44. Bg7 {[%emt 0:01:26]} Nf1 {[%emt 0:00:31]} 45. h4 {[%emt 0:03:55]} Nxg3 {[%emt 0:00:12]} 46. Be5 {[%emt 0:00:24]} Ne2 {[%emt 0:01:10]} 47. Bd6 {[%emt 0:00:24]} Nd4 {[%emt 0:02:27]} 48. Kc3 {[%emt 0:00:19]} Nb3 {[%emt 0:00:17]} 49. Kb4 {[%emt 0:00:06]} Nd2 {[%emt 0:00:48]} 50. Bf8 {[%emt 0:01:08]} Nc4 {[%emt 0:00:13]} 51. Be7 {[%emt 0:00:36]} Ne3 {[%emt 0:00:04]} 52. Bd6 {[%emt 0:00:54]} Nc2+ {[%emt 0:00:37]} 0-1

[Event "24th Mediterranean Flower 2024"]
[Site "Rijeka"]
[Date "2024.03.07"]
[Round "6.2"]
[White "Zagorac, Lara"]
[Black "Radikovic, Anamarija"]
[Result "0-1"]
[ECO "A46"]
[WhiteElo "1894"]
[BlackElo "2039"]
[Annotator "RC"]
[PlyCount "98"]
[EventDate "2024.03.04"]
[EventType "tourn"]
[EventCountry "CRO"]
[SourceTitle "playchess.com"]
[Source "ChessBase"]
[SourceQuality "1"]
[TimeControl "5400+30"]

1. Nf3 {[%emt 0:00:07]} d5 {[%emt 0:00:04]} 2. g3 {[%emt 0:00:11]} Nf6 {[%emt 0:00:05]} 3. Bg2 {[%emt 0:00:11]} e6 {[%emt 0:00:04]} 4. d4 {[%emt 0:01:48]} b5 {[%emt 0:00:29]} 5. O-O {[%emt 0:00:39]} Be7 {[%emt 0:00:03]} 6. Ne5 {[%emt 0:02:56]} Nfd7 {[%emt 0:04:54]} 7. f4 {[%emt 0:06:56]} O-O {[%emt 0:02:07]} 8. Nd2 {[%emt 0:00:59]} Bb7 {[%emt 0:19:18]} 9. Ndf3 {[%emt 0:03:02]} c5 {[%emt 0:03:26]} 10. e3 {[%emt 0:01:47]} Nf6 {[%emt 0:10:12]} 11. Nh4 {[%emt 0:13:55]} Nc6 {[%emt 0:08:35]} 12. Nhf3 {[%emt 0:11:13]} Ne4 {[%emt 0:03:14]} 13. Nxc6 {[%emt 0:01:14]} Bxc6 {[%emt 0:00:04]} 14. Ne5 {[%emt 0:00:16]} Bb7 {[%emt 0:03:11]} 15. c3 {[%emt 0:01:59]} b4 {[%emt 0:02:06]} 16. cxb4 {[%emt 0:03:35]} cxb4 {[%emt 0:00:55]} 17. Bxe4 {[%emt 0:01:21]} dxe4 {[%emt 0:00:04]} 18. Bd2 {[%emt 0:00:34]} f6 {[%emt 0:07:52]} 19. Ng4 {[%emt 0:05:10]} Qd7 {[%emt 0:02:20]} 20. Qe2 {[%emt 0:06:23]} Rfc8 {[%emt 0:04:45]} 21. Rfc1 {[%emt 0:01:34]} Rxc1+ {[%emt 0:14:34]} 22. Rxc1 {[%emt 0:01:01]} Rc8 {[%emt 0:00:04]} 23. Nf2 {[%emt 0:03:56]} Rxc1+ {[%emt 0:04:40]} 24. Bxc1 {[%emt 0:00:01]} Qc6 {[%emt 0:00:07]} 25. Qd1 {[%emt 0:01:27]} a5 {[%emt 0:01:56]} 26. b3 {[%emt 0:03:45]} Bd6 {[%emt 0:01:48]} 27. Bb2 {[%emt 0:01:37]} Ba6 {[%emt 0:00:34]} 28. Nh3 {[%emt 0:03:37]} Qb5 {[%emt 0:01:05]} 29. Kf2 {[%emt 0:00:29]} h6 {[%emt 0:00:56]} 30. Ng1 {[%emt 0:00:41]} Qd5 {[%emt 0:00:27]} 31. Ne2 {[%emt 0:02:02]} Qh5 {[%emt 0:00:12]} 32. Ke1 {[%emt 0:02:33]} Qxh2 {[%emt 0:00:11]} 33. Kd2 {[%emt 0:00:18]} Bd3 {[%emt 0:01:12]} 34. Qe1 {[%emt 0:00:57]} h5 {[%emt 0:00:52]} 35. Kd1 {[%emt 0:00:53]} Qg2 {[%emt 0:00:16]} 36. Bc1 {[%emt 0:00:49]} e5 {[%emt 0:01:15]} 37. fxe5 {[%emt 0:01:51]} fxe5 {[%emt 0:00:06]} 38. d5 {[%emt 0:00:18]} Qf3 {[%emt 0:01:47]} 39. Bd2 {[%emt 0:01:53]} Bc5 {[%emt 0:00:05]} 40. Bc1 {[%emt 0:00:22]} Kf7 {[%emt 0:01:21]} 41. Bb2 {[%emt 0:02:30]} Bxe3 {[%emt 0:00:40]} 42. Bxe5 {[%emt 0:00:36]} Bf2 {[%emt 0:00:13]} 43. Qf1 {[%emt 0:00:52]} e3 {[%emt 0:01:13]} 44. Kc1 {[%emt 0:02:56]} Qxe2 {[%emt 0:00:17]} 45. Qxe2 {[%emt 0:00:41]} Bxe2 {[%emt 0:00:05]} 46. d6 {[%emt 0:00:28]} Bg4 {[%emt 0:00:09]} 47. Bd4 {[%emt 0:00:05]} g5 {[%emt 0:00:40]} 48. Bb6 {[%emt 0:01:40]} Ke6 {[%emt 0:01:31]} 49. Bxa5 {[%emt 0:00:08]} h4 {[%emt 0:01:11]} 0-1

[Event "24th Mediterranean Flower 2024"]
[Site "Rijeka"]
[Date "2024.03.07"]
[Round "6.3"]
[White "Urh, Zala"]
[Black "Hamdouchi, Adina-Maria"]
[Result "1/2-1/2"]
[ECO "E62"]
[WhiteElo "2287"]
[BlackElo "2213"]
[Annotator "TA"]
[PlyCount "27"]
[EventDate "2024.03.04"]
[EventType "tourn"]
[EventCountry "CRO"]
[SourceTitle "playchess.com"]
[Source "ChessBase"]
[SourceQuality "1"]
[TimeControl "5400+30"]

{[%evp 15,27,8,18,15,15,9,6,0,4,-6,-6,-14,-30,-15]} 1. d4 {[%emt 0:00:10]} Nf6 {[%emt 0:00:04]} 2. c4 {[%emt 0:00:17]} g6 {[%emt 0:00:05]} 3. g3 {[%emt 0:00:16]} Bg7 {[%emt 0:00:28]} 4. Bg2 {[%emt 0:00:07]} d6 {[%emt 0:00:07]} 5. Nc3 {[%emt 0:02:13]} O-O {[%emt 0:01:09]} 6. Nf3 {[%emt 0:00:23]} c6 {[%emt 0:00:14]} 7. O-O {[%emt 0:02:32]} Bf5 {[%emt 0:01:17]} 8. Nh4 {[%emt 0:02:50]} Be6 {[%emt 0:00:15]} 9. Qd3 {[%emt 0:11:09]} d5 {[%emt 0:01:53]} 10. cxd5 {[%emt 0:01:32]} cxd5 {[%emt 0:00:39]} 11. Bg5 {[%emt 0:05:40]} Nc6 {[%emt 0:05:08]} 12. Rfd1 {[%emt 0:12:51]} Qd7 {[%emt 0:05:56]} 13. Rac1 {[%emt 0:09:13]} Rfd8 {[%emt 0:02:46]} 14. Bxf6 {[%emt 0:09:14] Not much happened in this game.   Weighted Error Value: White=0.06 (flawless) /Black=0.00 (flawless) .  OK:         	---       	Black=4} 1/2-1/2

[Event "24th Mediterranean Flower 2024"]
[Site "Rijeka"]
[Date "2024.03.07"]
[Round "6.4"]
[White "Hnatyshyn, Anastasiia"]
[Black "Medic, Mirjana"]
[Result "1-0"]
[ECO "C02"]
[WhiteElo "2178"]
[BlackElo "2132"]
[Annotator "RC"]
[PlyCount "108"]
[EventDate "2024.03.04"]
[EventType "tourn"]
[EventCountry "CRO"]
[SourceTitle "playchess.com"]
[Source "ChessBase"]
[SourceQuality "1"]
[TimeControl "5400+30"]

1. e4 {[%emt 0:00:02]} e6 {[%emt 0:00:05]} 2. d4 {[%emt 0:00:04]} d5 {[%emt 0:00:04]} 3. e5 {[%emt 0:00:04]} c5 {[%emt 0:00:08]} 4. c3 {[%emt 0:00:04]} Nc6 {[%emt 0:00:08]} 5. Nf3 {[%emt 0:00:06]} Bd7 {[%emt 0:00:23]} 6. Be2 {[%emt 0:02:34]} Nge7 {[%emt 0:00:20]} 7. Na3 {[%emt 0:01:24]} a6 {[%emt 0:03:10]} 8. Nc2 {[%emt 0:02:42]} cxd4 {[%emt 0:00:27]} 9. cxd4 {[%emt 0:00:10]} Nf5 {[%emt 0:00:18]} 10. O-O {[%emt 0:01:05]} Be7 {[%emt 0:01:02]} 11. Rb1 {[%emt 0:04:24]} Na7 {[%emt 0:06:20]} 12. g4 {[%emt 0:07:08]} Nh4 {[%emt 0:00:27]} 13. Nxh4 {[%emt 0:00:21]} Bxh4 {[%emt 0:00:02]} 14. f4 {[%emt 0:00:50]} Be7 {[%emt 0:01:35]} 15. f5 {[%emt 0:07:13]} Qb6 {[%emt 0:02:35]} 16. Kh1 {[%emt 0:02:51]} O-O-O {[%emt 0:05:43]} 17. Rf3 {[%emt 0:07:50]} Kb8 {[%emt 0:00:40]} 18. Bd2 {[%emt 0:03:47]} Rc8 {[%emt 0:00:26]} 19. Rb3 {[%emt 0:01:55]} Bb5 {[%emt 0:09:09]} 20. Rc1 {[%emt 0:08:06]} Rc6 {[%emt 0:02:57]} 21. Qe1 {[%emt 0:01:51]} Qc7 {[%emt 0:01:25]} 22. Rc3 {[%emt 0:05:33]} Rxc3 {[%emt 0:02:38]} 23. bxc3 {[%emt 0:02:44]} Rc8 {[%emt 0:03:43]} 24. Ne3 {[%emt 0:02:07]} Qd7 {[%emt 0:08:14]} 25. Qf1 {[%emt 0:07:04]} Bg5 {[%emt 0:01:57]} 26. h4 {[%emt 0:07:08]} Bxe3 {[%emt 0:04:39]} 27. fxe6 {[%emt 0:01:30]} fxe6 {[%emt 0:00:05]} 28. Bxe3 {[%emt 0:00:10]} Bxe2 {[%emt 0:01:45]} 29. Qxe2 {[%emt 0:00:04]} Nb5 {[%emt 0:00:15]} 30. Bd2 {[%emt 0:05:10]} Rf8 {[%emt 0:01:04]} 31. Kg2 {[%emt 0:02:30]} Na3 {[%emt 0:00:40]} 32. Rf1 {[%emt 0:02:05]} Rf7 {[%emt 0:06:08]} 33. Qd3 {[%emt 0:01:42]} Nc4 {[%emt 0:00:18]} 34. Bc1 {[%emt 0:00:36]} Rxf1 {[%emt 0:01:55]} 35. Qxf1 {[%emt 0:01:09]} Qe8 {[%emt 0:02:48]} 36. h5 {[%emt 0:01:00]} Ka7 {[%emt 0:00:22]} 37. Qd3 {[%emt 0:01:32]} g6 {[%emt 0:06:33]} 38. hxg6 {[%emt 0:02:06]} hxg6 {[%emt 0:00:01]} 39. Kg3 {[%emt 0:01:13]} a5 {[%emt 0:02:30]} 40. Bg5 {[%emt 0:03:19]} Qa4 {[%emt 0:05:47]} 41. Qxg6 {[%emt 0:01:32]} Qxa2 {[%emt 0:00:14]} 42. Qxe6 {[%emt 0:01:26]} Qc2 {[%emt 0:00:11]} 43. Qxd5 {[%emt 0:01:00]} Qxc3+ {[%emt 0:00:09]} 44. Kh4 {[%emt 0:01:15]} Nb6 {[%emt 0:01:29]} 45. Qc5 {[%emt 0:01:15]} Qe1+ {[%emt 0:00:17]} 46. Kh5 {[%emt 0:00:07]} Qh1+ {[%emt 0:01:07]} 47. Kg6 {[%emt 0:02:45]} Qe4+ {[%emt 0:00:19]} 48. Kh6 {[%emt 0:00:09]} Ka6 {[%emt 0:05:26]} 49. Bd8 {[%emt 0:00:28]} Qc6+ {[%emt 0:04:09]} 50. Qxc6 {[%emt 0:00:06]} bxc6 {[%emt 0:00:01]} 51. Bxb6 {[%emt 0:00:51]} Kxb6 {[%emt 0:00:02]} 52. e6 {[%emt 0:00:06]} Kc7 {[%emt 0:00:11]} 53. Kg7 {[%emt 0:00:05]} Kd6 {[%emt 0:00:21]} 54. Kf7 {[%emt 0:03:12]} Kc7 {[%emt 0:14:48]} 1-0

[Event "24th Mediterranean Flower 2024"]
[Site "Rijeka"]
[Date "2024.03.07"]
[Round "7.1"]
[White "Mihaljevic, Eva"]
[Black "Skuhala, Barbara"]
[Result "1/2-1/2"]
[ECO "B90"]
[WhiteElo "1946"]
[BlackElo "2188"]
[Annotator "RC"]
[PlyCount "92"]
[EventDate "2024.03.04"]
[EventType "tourn"]
[EventCountry "CRO"]
[SourceTitle "playchess.com"]
[Source "ChessBase"]
[SourceQuality "1"]
[TimeControl "5400+30"]

1. e4 {[%emt 0:00:02]} c5 {[%emt 0:00:04]} 2. Nf3 {[%emt 0:00:06]} d6 {[%emt 0:00:04]} 3. d4 {[%emt 0:00:06]} cxd4 {[%emt 0:00:05]} 4. Nxd4 {[%emt 0:00:06]} Nf6 {[%emt 0:00:04]} 5. Nc3 {[%emt 0:00:07]} a6 {[%emt 0:00:04]} 6. Rg1 {[%emt 0:00:05]} e5 {[%emt 0:02:39]} 7. Nb3 {[%emt 0:00:06]} b5 {[%emt 0:00:30]} 8. g4 {[%emt 0:02:46]} Bb7 {[%emt 0:00:59]} 9. Bg2 {[%emt 0:07:45]} b4 {[%emt 0:01:07]} 10. Nd5 {[%emt 0:00:54]} Nxd5 {[%emt 0:03:37]} 11. exd5 {[%emt 0:00:02]} a5 {[%emt 0:00:41]} 12. Be3 {[%emt 0:01:56]} g6 {[%emt 0:03:20]} 13. Nd2 {[%emt 0:08:34]} Qc7 {[%emt 0:09:16]} 14. Ne4 {[%emt 0:07:08]} Nd7 {[%emt 0:06:40]} 15. c3 {[%emt 0:18:43]} Be7 {[%emt 0:38:42]} 16. Rc1 {[%emt 0:03:20]} bxc3 {[%emt 0:11:46]} 17. Rxc3 {[%emt 0:07:56]} Qd8 {[%emt 0:00:36]} 18. Qb3 {[%emt 0:09:31]} Ba6 {[%emt 0:02:11]} 19. Rc6 {[%emt 0:04:14]} O-O {[%emt 0:02:24]} 20. Bh6 {[%emt 0:05:41]} Re8 {[%emt 0:01:15]} 21. Nxd6 {[%emt 0:00:59]} Bxd6 {[%emt 0:01:23]} 22. Rxd6 {[%emt 0:00:23]} Rb8 {[%emt 0:03:42]} 23. Qc2 {[%emt 0:02:20]} Bb5 {[%emt 0:02:07]} 24. Be4 {[%emt 0:09:11]} Rc8 {[%emt 0:02:19]} 25. Qd2 {[%emt 0:04:37]} Qe7 {[%emt 0:01:53]} 26. Rxd7 {[%emt 0:00:48]} Bxd7 {[%emt 0:02:00]} 27. d6 {[%emt 0:03:36]} Qd8 {[%emt 0:00:10]} 28. Rg3 {[%emt 0:01:40]} Be6 {[%emt 0:01:46]} 29. Rd3 {[%emt 0:01:10]} Qd7 {[%emt 0:02:27]} 30. Qg5 {[%emt 0:00:34]} f6 {[%emt 0:00:52]} 31. Qxf6 {[%emt 0:00:08]} Bxg4 {[%emt 0:00:39]} 32. Bd5+ {[%emt 0:00:29]} Be6 {[%emt 0:00:05]} 33. Be4 {[%emt 0:00:46]} Rc4 {[%emt 0:00:57]} 34. Bxg6 {[%emt 0:00:28]} hxg6 {[%emt 0:00:33]} 35. Qxg6+ {[%emt 0:00:08]} Kh8 {[%emt 0:00:15]} 36. Bg7+ {[%emt 0:00:42]} Qxg7 {[%emt 0:00:13]} 37. Qxe8+ {[%emt 0:00:05]} Kh7 {[%emt 0:00:05]} 38. Qxe6 {[%emt 0:00:27]} Qg1+ {[%emt 0:01:00]} 39. Ke2 {[%emt 0:00:08]} Rc2+ {[%emt 0:00:48]} 40. Rd2 {[%emt 0:00:22]} Rxd2+ {[%emt 0:00:25]} 41. Kxd2 {[%emt 0:00:02]} Qxf2+ {[%emt 0:00:06]} 42. Kd3 {[%emt 0:01:54]} Qd4+ {[%emt 0:00:14]} 43. Kc2 {[%emt 0:00:38]} Qe4+ {[%emt 0:00:06]} 44. Kd2 {[%emt 0:00:42]} Qd4+ {[%emt 0:00:11]} 45. Kc2 {[%emt 0:00:37]} Qe4+ {[%emt 0:00:05]} 46. Kd2 {[%emt 0:00:28]} Qd4+ {[%emt 0:03:05]} 1/2-1/2

[Event "24th Mediterranean Flower 2024"]
[Site "Rijeka"]
[Date "2024.03.07"]
[Round "7.2"]
[White "Medic, Mirjana"]
[Black "Berke, Ana"]
[Result "1/2-1/2"]
[ECO "D36"]
[WhiteElo "2132"]
[BlackElo "2066"]
[Annotator "RC"]
[PlyCount "22"]
[EventDate "2024.03.04"]
[EventType "tourn"]
[EventCountry "CRO"]
[SourceTitle "playchess.com"]
[Source "ChessBase"]
[SourceQuality "1"]
[TimeControl "5400+30"]

1. d4 {[%emt 0:00:03]} d5 {[%emt 0:00:06]} 2. c4 {[%emt 0:00:04]} e6 {[%emt 0:00:04]} 3. Nc3 {[%emt 0:00:04]} Nf6 {[%emt 0:00:06]} 4. cxd5 {[%emt 0:00:06]} exd5 {[%emt 0:00:04]} 5. Bg5 {[%emt 0:00:08]} c6 {[%emt 0:00:05]} 6. Qc2 {[%emt 0:00:05]} Be7 {[%emt 0:00:07]} 7. e3 {[%emt 0:00:07]} O-O {[%emt 0:00:10]} 8. Bd3 {[%emt 0:00:05]} h6 {[%emt 0:00:10]} 9. Bh4 {[%emt 0:00:15]} Re8 {[%emt 0:00:11]} 10. Nf3 {[%emt 0:00:06]} Ne4 {[%emt 0:00:50]} 11. Bxe7 {[%emt 0:00:07]} Qxe7 {[%emt 0:00:04]} 1/2-1/2